bitfinex/quotes_SOLUSD_20250928
["timestamp","ask_amount","ask_price","bid_price","bid_amount"]
[1759099654932,0.69,210.45,210.41,4.75262582]
[1759099655134,2.47106505,210.46,210.41,4.75262582]
[1759099655336,0.1,210.46,210.41,5.41262582]
[1759099655551,2.47106505,210.46,210.41,5.41262582]
[1759099655750,3.16106505,210.46,210.41,5.41262582]
[1759099657625,0.69,210.45,210.37,0.66]
[1759099657824,2.37106505,210.44,210.37,0.66]
[1759099658225,2.37106505,210.44,210.38,4.75330354]
[1759099658428,2.37106505,210.44,210.38,5.41330354]
[1759099659456,0.1,210.46,210.39,0.66]
[1759099660252,0.1,210.46,210.4,16.63498098]
[1759099660555,2.37106505,210.41,210.35,40.08]
[1759099660726,26.0,210.43,210.35,40.08]
[1759099660727,2.37106505,210.4,210.35,40.08]
[1759099661145,2.37106505,210.4,210.36,0.66]
[1759099662031,2.37106505,210.43,210.37,0.66]
[1759099662230,2.37106505,210.43,210.38,4.75330354]
[1759099662526,2.37106505,210.43,210.38,5.41330354]
[1759099662729,0.69,210.42,210.35,40.08]
[1759099662930,0.69,210.42,210.35,40.04]
[1759099663150,0.69,210.42,210.35,39.38]
[1759099663462,3.06106505,210.44,210.36,0.66]
[1759099663659,26.0,210.45,210.36,0.66]
[1759099663859,0.1,210.46,210.36,0.66]
[1759099664353,0.1,210.46,210.39,16.63577165]
[1759099664558,0.1,210.46,210.4,0.66]
[1759099664939,0.1,210.46,210.41,39.42]
[1759099665137,0.1,210.46,210.42,0.66]
[1759099665333,0.1,210.46,210.43,0.66]
[1759099665842,0.1,210.46,210.41,39.42]
[1759099666034,0.79,210.46,210.4,40.1]
[1759099666456,0.79,210.46,210.4,5.41269565]
[1759099666658,0.1,210.46,210.4,44.17269565]
[1759099666840,0.1,210.46,210.41,0.66]
[1759099667038,0.1,210.46,210.42,0.66]
[1759099667655,0.1,210.46,210.4,44.17269565]
[1759099667840,0.1,210.46,210.4,0.66]
[1759099668044,0.1,210.46,210.4,44.81271386]
[1759099668247,0.1,210.46,210.4,44.15271386]
[1759099668449,0.1,210.46,210.41,0.66]
[1759099668651,0.1,210.46,210.42,0.66]
[1759099668835,2.47106505,210.46,210.4,0.66]
[1759099669033,0.69,210.45,210.4,0.66]
[1759099669238,2.47106505,210.46,210.41,0.66]
[1759099669440,0.69,210.45,210.39,65.36]
[1759099669644,0.1,210.46,210.4,0.66]
[1759099670744,0.1,210.46,210.4,5.41273461]
[1759099670941,0.1,210.46,210.4,4.75273461]
[1759099671147,0.1,210.46,210.41,0.67]
[1759099671341,0.1,210.46,210.42,0.67]
[1759099671746,0.8,210.46,210.4,5.42273461]
[1759099672067,0.1,210.46,210.41,0.67]
[1759099672266,0.1,210.46,210.42,0.67]
[1759099672469,0.1,210.46,210.4,44.07273461]
[1759099672670,0.1,210.46,210.41,0.67]
[1759099672879,0.8,210.46,210.41,0.67]
[1759099674569,2.47106505,210.46,210.38,69.99327769]
[1759099674746,3.17106505,210.46,210.41,0.67]
[1759099675063,0.7,210.45,210.39,0.67]
[1759099675237,2.37106505,210.44,210.39,5.42307532]
[1759099675444,2.37106505,210.44,210.4,0.67]
[1759099675977,3.07106505,210.44,210.38,39.89]
[1759099676271,2.37106505,210.42,210.35,39.89]
[1759099676565,2.37106505,210.42,210.36,0.67]
[1759099677064,0.7,210.41,210.34,0.67]
[1759099677358,0.7,210.41,210.34,39.87]
[1759099677748,0.7,210.41,210.34,0.67]
[1759099679175,0.7,210.41,210.34,5.4242059]
[1759099679341,0.7,210.41,210.35,0.67]
[1759099680346,2.21823378,210.41,210.35,0.67]
[1759099680549,26.0,210.42,210.35,0.67]
[1759099680770,3.1986434,210.44,210.35,0.67]
[1759099681165,30.71687718,210.45,210.36,4.75375546]
[1759099681463,30.71687718,210.45,210.37,0.67]
[1759099681672,31.41687718,210.45,210.37,0.67]
[1759099683182,31.41687718,210.45,210.38,4.75330354]
[1759099683551,31.41687718,210.45,210.37,0.67]
[1759099683749,29.8986434,210.45,210.37,0.67]
[1759099683975,31.41687718,210.45,210.37,5.4235136]
[1759099684158,31.41687718,210.45,210.38,0.67]
[1759099685048,5.41687718,210.45,210.37,0.67]
[1759099685451,1.51823378,210.41,210.33,0.67]
[1759099685656,0.7,210.4,210.33,0.67]
[1759099686855,0.7,210.4,210.33,26.0]
[1759099687052,0.7,210.39,210.31,0.67]
[1759099687258,2.21823378,210.39,210.31,0.67]
[1759099688079,2.21823378,210.39,210.31,5.42483365]
[1759099688289,2.21823378,210.39,210.32,0.67]
[1759099689155,2.21823378,210.39,210.32,5.42464812]
[1759099689361,2.21823378,210.39,210.32,0.67]
[1759099689872,2.21823378,210.39,210.32,5.42465693]
[1759099690370,2.21823378,210.39,210.32,0.67]
[1759099690570,1.51823378,210.37,210.28,0.67]
[1759099690956,0.7,210.36,210.28,5.42541998]
[1759099691276,28.21823378,210.38,210.29,0.67]
[1759099691689,2.21823378,210.38,210.29,0.67]
[1759099692385,2.21861729,210.38,210.29,0.67]
[1759099693080,2.21861729,210.38,210.3,4.75511174]
[1759099693276,2.21861729,210.38,210.31,0.65]
[1759099694178,13.59559401,210.37,210.28,31.40553324]
[1759099694384,0.7,210.36,210.28,31.40553324]
[1759099694574,0.7,210.35,210.28,5.40553324]
[1759099694763,0.7,210.35,210.25,5.40601802]
[1759099694764,0.7,210.34,210.25,5.40601802]
[1759099695077,2.21861729,210.33,210.23,5.40669504]
[1759099695298,0.7,210.32,210.23,31.40669504]
[1759099695583,0.7,210.31,210.23,5.40669504]
[1759099695800,0.7,210.3,210.19,11.89375403]
[1759099696093,2.21861729,210.29,210.21,0.65]
[1759099697195,13.59559401,210.28,210.21,5.40708687]
[1759099697679,0.7,210.27,210.21,5.40708687]
[1759099698194,26.0,210.3,210.22,0.65]
[1759099698689,0.7,210.3,210.22,0.65]
[1759099699184,0.7,210.3,210.23,4.75669504]
[1759099700380,0.7,210.3,210.23,5.40669504]
[1759099700582,0.7,210.29,210.21,5.40695535]
[1759099700782,2.18861729,210.28,210.21,5.40695535]
[1759099701562,26.0,210.24,210.16,0.71]
[1759099701764,1.51861729,210.21,210.13,0.71]
[1759099701986,1.51861729,210.21,210.13,5.46895144]
[1759099702776,1.51861729,210.21,210.13,0.71]
[1759099702971,26.0,210.24,210.13,0.71]
[1759099703175,1.51861729,210.19,210.13,0.71]
[1759099703588,1.51861729,210.19,210.11,4.75939107]
[1759099703589,0.35,210.18,210.1,31.46963334]
[1759099703772,1.51861729,210.19,210.1,5.46963334]
[1759099703968,0.35,210.18,210.1,0.71]
[1759099704171,0.35,210.17,210.1,5.46961084]
[1759099704589,1.86861729,210.19,210.1,0.71]
[1759099704889,1.86861729,210.19,210.11,5.4693867]
[1759099704890,0.35,210.18,210.11,5.4693867]
[1759099705092,1.51861729,210.19,210.11,0.71]
[1759099705290,1.51861729,210.19,210.13,0.71]
[1759099705474,0.35,210.18,210.11,0.71]
[1759099706270,1.86861729,210.17,210.11,0.71]
[1759099706466,0.35,210.16,210.09,0.71]
[1759099706689,0.35,210.16,210.07,26.2]
[1759099706690,39.94559401,210.16,210.07,0.2]
[1759099706888,39.94559401,210.16,210.08,0.71]
[1759099707173,39.94559401,210.16,210.08,5.46997888]
[1759099707493,39.94559401,210.16,210.09,4.75983422]
[1759099707697,78.82559401,210.16,210.09,4.75983422]
[1759099707994,78.82559401,210.16,210.08,0.71]
[1759099708196,78.47559401,210.16,210.11,0.71]
[1759099709264,78.82559401,210.16,210.11,0.71]
[1759099709471,78.82559401,210.16,210.07,0.2]
[1759099709472,83.58387341,210.16,210.07,0.2]
[1759099711490,83.58387341,210.16,210.07,0.91]
[1759099713377,83.58387341,210.16,210.09,0.71]
[1759099713577,78.47559401,210.16,210.11,0.71]
[1759099713780,78.41559401,210.16,210.11,0.71]
[1759099714083,83.52387341,210.16,210.07,0.2]
[1759099714503,83.52387341,210.16,210.07,0.91]
[1759099715873,78.76559401,210.16,210.09,0.71]
[1759099716093,80.2842113,210.16,210.09,0.71]
[1759099716303,85.0424907,210.16,210.09,0.71]
[1759099716803,84.6924907,210.16,210.07,0.2]
[1759099716983,84.6924907,210.16,210.1,0.71]
[1759099717902,41.1142113,210.16,210.07,4.9602909]
[1759099718103,79.8942113,210.16,210.11,0.71]
[1759099718492,79.8942113,210.16,210.15,0.91]
[1759099719392,79.8942113,210.16,210.15,0.2]
[1759099719702,53.8942113,210.16,210.15,0.2]
[1759099719875,38.78,210.16,210.15,0.2]
[1759099720077,58.6524907,210.16,210.15,0.2]
[1759099720574,59.0024907,210.16,210.15,0.2]
[1759099721081,58.6524907,210.16,210.15,0.2]
[1759099721491,53.8942113,210.16,210.15,0.2]
[1759099721697,59.0024907,210.16,210.15,0.2]
[1759099722491,20.2224907,210.16,210.15,0.2]
[1759099722785,58.9824907,210.16,210.15,0.2]
[1759099723616,64.88301605,210.16,210.15,0.2]
[1759099724184,1.51861729,210.08,210.07,0.2]
[1759099724384,40.25861729,210.08,210.07,0.91]
[1759099724615,40.25861729,210.08,210.07,0.2]
[1759099725184,53.8542113,210.08,210.07,0.2]
[1759099725813,53.8542113,210.08,210.07,0.91]
[1759099726018,15.1142113,210.08,210.07,0.91]
[1759099726305,53.8342113,210.08,210.07,0.2]
[1759099727820,53.8342113,210.08,210.07,0.91]
[1759099728009,53.8342113,210.08,210.07,0.2]
[1759099728189,53.8342113,210.08,210.07,0.91]
[1759099728507,53.8342113,210.08,210.07,0.2]
[1759099730104,15.1142113,210.08,210.07,0.2]
[1759099730409,53.7742113,210.08,210.07,0.2]
[1759099731308,58.53430269,210.08,210.07,0.2]
[1759099732009,52.25559401,210.08,210.07,0.91]
[1759099732188,26.0,210.12,210.07,0.91]
[1759099732505,38.62,210.12,210.08,0.71]
[1759099732895,1.51861729,210.14,210.08,0.71]
[1759099733214,38.62,210.13,210.08,0.71]
[1759099733593,13.59559401,210.16,210.08,0.71]
[1759099733793,38.62,210.15,210.08,0.71]
[1759099734091,38.62,210.15,210.09,4.75986481]
[1759099734286,38.62,210.15,210.1,0.71]
[1759099734698,26.0,210.17,210.1,0.71]
[1759099734895,52.19559401,210.17,210.1,0.71]
[1759099735212,78.19559401,210.17,210.1,0.71]
[1759099735590,1.51861729,210.15,210.1,0.71]
[1759099735804,38.6,210.14,210.11,0.71]
[1759099736009,38.6,210.14,210.12,0.71]
[1759099736212,38.6,210.14,210.08,0.71]
[1759099736399,1.51861729,210.12,210.08,0.71]
[1759099736712,40.09861729,210.12,210.09,0.71]
[1759099736920,40.09861729,210.12,210.1,0.71]
[1759099737090,38.58,210.12,210.11,0.71]
[1759099738414,26.0,210.12,210.11,0.71]
[1759099740397,26.0,210.12,210.09,0.71]
[1759099740616,30.75918522,210.12,210.09,0.71]
[1759099740804,30.75918522,210.12,210.07,0.2]
[1759099741001,30.75918522,210.12,210.08,0.71]
[1759099741205,1.51861729,210.1,210.07,0.2]
[1759099741522,52.09559401,210.09,210.07,0.2]
[1759099742019,0.35,210.13,210.07,0.2]
[1759099742020,26.0,210.13,210.08,0.71]
[1759099742198,38.5,210.12,210.07,0.2]
[1759099742401,38.52,210.13,210.09,0.71]
[1759099742608,26.0,210.11,210.1,0.71]
[1759099742817,64.52,210.13,210.07,0.2]
[1759099743001,64.52,210.13,210.08,0.71]
[1759099744121,66.8982718,210.13,210.08,0.71]
[1759099744325,3.19362967,210.12,210.07,0.2]
[1759099744521,3.19362967,210.12,210.09,0.71]
[1759099744713,3.19362967,210.12,210.1,0.71]
[1759099745114,44.09190147,210.13,210.1,0.71]
[1759099745309,48.85086581,210.13,210.08,0.71]
[1759099745614,3.19362967,210.12,210.09,0.71]
[1759099745815,44.09190147,210.13,210.1,0.71]
[1759099747423,3.19362967,210.12,210.08,0.71]
[1759099747628,3.19362967,210.12,210.09,0.71]
[1759099748031,3.19362967,210.12,210.1,0.71]
[1759099748324,44.09190147,210.13,210.1,0.71]
[1759099749319,41.71362967,210.13,210.07,0.2]
[1759099749512,41.71362967,210.13,210.08,0.71]
[1759099749925,41.71362967,210.13,210.09,0.71]
[1759099750812,3.19362967,210.12,210.09,0.71]
[1759099751108,41.71362967,210.13,210.09,0.71]
[1759099753127,44.09190147,210.13,210.1,0.7]
[1759099753431,44.09190147,210.13,210.08,0.7]
[1759099753634,44.09190147,210.13,210.09,0.7]
[1759099753832,3.19362967,210.13,210.1,0.7]
[1759099754032,41.53362967,210.15,210.1,0.7]
[1759099754238,3.19362967,210.15,210.1,0.7]
[1759099754536,135.1782718,210.16,210.1,0.7]
[1759099757426,135.1782718,210.16,210.1,5.45962831]
[1759099758134,135.1782718,210.16,210.11,0.7]
[1759099758333,135.1782718,210.16,210.12,0.7]
[1759099758833,2.3782718,210.19,210.12,0.7]
[1759099759030,0.35,210.18,210.12,0.7]
[1759099759231,13.94559401,210.18,210.1,0.7]
[1759099759530,13.59559401,210.18,210.1,0.7]
[1759099759736,16.32386581,210.18,210.1,0.7]
[1759099760239,16.32386581,210.18,210.08,4.76009139]
[1759099760240,28.3782718,210.15,210.07,0.9]
[1759099760449,0.35,210.14,210.07,0.9]
[1759099760659,2.3782718,210.12,210.07,0.9]
[1759099760821,2.3782718,210.12,210.08,0.71]
[1759099761223,2.3782718,210.12,210.07,0.2]
[1759099761441,0.35,210.11,210.07,0.2]
[1759099761840,2.3782718,210.12,210.07,0.91]
[1759099762135,2.3782718,210.14,210.08,0.71]
[1759099762334,2.3782718,210.14,210.08,5.46997648]
[1759099762533,41.42894653,210.16,210.09,0.71]
[1759099762742,38.22,210.16,210.09,0.71]
[1759099762946,41.42894653,210.16,210.09,0.71]
[1759099763130,38.22,210.16,210.09,0.71]
[1759099764142,2.3782718,210.17,210.09,5.46966895]
[1759099764346,2.3782718,210.17,210.1,0.71]
[1759099764725,0.35,210.16,210.1,0.71]
[1759099766441,0.35,210.16,210.07,0.2]
[1759099766442,2.3782718,210.14,210.07,0.2]
[1759099766626,0.35,210.13,210.07,0.2]
[1759099766827,2.37868867,210.12,210.07,0.2]
[1759099767036,2.37868867,210.12,210.08,0.71]
[1759099767221,2.37868867,210.12,210.09,0.71]
[1759099768039,2.37868867,210.12,210.07,0.2]
[1759099768239,2.72868867,210.12,210.07,0.91]
[1759099768543,2.72868867,210.12,210.07,0.2]
[1759099768748,2.37868867,210.09,210.07,0.2]
[1759099769349,2.37868867,210.09,210.08,0.71]
[1759099769524,2.37868867,210.09,210.07,0.2]
[1759099769723,2.37868867,210.09,210.07,0.91]
[1759099770540,0.35,210.13,210.08,0.71]
[1759099770541,26.0,210.12,210.08,0.71]
[1759099770936,2.37868867,210.13,210.08,0.71]
[1759099771132,2.72868867,210.13,210.08,0.71]
[1759099771338,2.37868867,210.13,210.08,0.71]
[1759099771537,2.72868867,210.13,210.07,0.2]
[1759099773543,3.20999398,210.14,210.08,0.71]
[1759099773741,64.16,210.15,210.08,0.71]
[1759099774132,38.16,210.15,210.08,0.71]
[1759099775347,38.16,210.15,210.09,4.75986481]
[1759099775548,38.16,210.15,210.1,0.71]
[1759099775734,3.56113046,210.17,210.09,4.75986481]
[1759099775735,3.21113046,210.17,210.11,0.71]
[1759099775939,0.35,210.16,210.08,4.7600708]
[1759099776260,0.35,210.16,210.07,0.2]
[1759099776261,0.35,210.15,210.07,0.91]
[1759099776748,13.59559401,210.15,210.07,0.91]
[1759099776948,0.35,210.14,210.07,0.91]
[1759099780056,2.72868867,210.13,210.07,0.91]
[1759099780454,2.37868867,210.14,210.08,0.71]
[1759099780655,5.58981913,210.14,210.08,0.71]
[1759099780863,5.59200256,210.14,210.08,5.47006063]
[1759099781652,2.37868867,210.14,210.08,5.47006063]
[1759099782746,2.37868867,210.14,210.08,0.71]
[1759099785056,2.37868867,210.14,210.08,5.47001216]
[1759099785266,2.37868867,210.14,210.08,0.71]
[1759099785771,16.8089079,210.15,210.08,5.46999773]
[1759099785941,17.1589079,210.15,210.09,0.71]
[1759099786365,13.94559401,210.15,210.09,0.71]
[1759099787343,17.1589079,210.15,210.09,0.71]
[1759099787949,16.8089079,210.15,210.09,0.71]
[1759099789366,13.59559401,210.15,210.09,0.71]
[1759099790374,13.94559401,210.15,210.09,0.71]
[1759099793074,3.21331389,210.16,210.09,0.71]
[1759099793271,5.59200256,210.16,210.09,5.46977607]
[1759099793446,5.59200256,210.16,210.1,5.45999773]
[1759099793652,3.21331389,210.16,210.11,0.7]
[1759099794478,3.21331389,210.16,210.12,4.75977607]
[1759099794679,3.21331389,210.16,210.13,0.7]
[1759099796385,3.21331389,210.16,210.12,4.75977607]
[1759099796559,3.21331389,210.16,210.12,5.45977607]
[1759099797179,3.21331389,210.16,210.12,4.75977607]
[1759099797383,3.21331389,210.16,210.13,0.7]
[1759099798481,3.21331389,210.16,210.12,9.51895227]
[1759099798693,0.35,210.15,210.12,4.75977607]
[1759099798901,0.35,210.15,210.09,0.7]
[1759099799076,0.35,210.14,210.1,14.31946732]
[1759099799395,5.94200256,210.16,210.1,15.01946732]
[1759099799789,3.21331389,210.16,210.11,0.7]
[1759099800093,5.59200256,210.16,210.12,0.7]
[1759099800288,5.59200256,210.16,210.11,14.31878386]
[1759099800467,5.59200256,210.16,210.13,0.7]
[1759099800871,3.21331389,210.16,210.14,0.7]
[1759099801106,3.56331389,210.19,210.12,0.7]
[1759099801317,3.56331389,210.19,210.14,14.31741714]
[1759099801487,3.56331389,210.19,210.12,0.7]
[1759099801694,3.56331389,210.19,210.13,0.7]
[1759099802009,3.56331389,210.19,210.13,15.01810047]
[1759099803078,8.3209143,210.19,210.13,15.01810047]
[1759099803296,3.56331389,210.19,210.13,14.31810047]
[1759099803497,2.37868867,210.19,210.14,0.7]
[1759099803674,2.37868867,210.19,210.13,4.75894196]
[1759099803874,2.37868867,210.19,210.15,0.7]
[1759099804206,2.37868867,210.19,210.13,4.75894196]
[1759099804371,3.21331389,210.21,210.16,0.7]
[1759099804569,1.52110299,210.23,210.14,26.0]
[1759099804570,1.52110299,210.22,210.14,26.0]
[1759099804803,0.35,210.2,210.13,0.7]
[1759099805104,26.35,210.2,210.14,14.31673388]
[1759099805505,1.52110299,210.19,210.14,14.31673388]
[1759099805717,0.35,210.18,210.13,0.7]
[1759099805872,0.35,210.18,210.13,15.01673388]
[1759099806696,26.35,210.18,210.13,0.7]
[1759099807287,26.0,210.18,210.13,0.7]
[1759099807496,26.0,210.18,210.14,0.7]
[1759099807799,4.73441688,210.19,210.14,0.7]
[1759099807971,3.21331389,210.19,210.15,0.7]
[1759099808174,38.1,210.2,210.16,0.7]
[1759099808385,4.73441688,210.21,210.16,0.7]
[1759099808593,1.52110299,210.21,210.17,0.7]
[1759099808793,3.21331389,210.22,210.17,0.7]
[1759099808993,3.828698,210.27,210.18,14.31195286]
[1759099809202,23.5954431,210.09,210.07,38.1]
[1759099809389,23.07808732,210.19,210.16,1.79e-06]
[1759099809582,23.27532297,210.16,210.05,1.52110346]
[1759099809791,61.37532297,210.16,210.05,2e-07]
[1759099812007,61.37532297,210.16,210.08,2e-07]
[1759099812304,61.37532297,210.16,210.01,2e-07]
[1759099812804,61.37532297,210.16,210.01,14.3100002]
[1759099813002,61.37532297,210.16,210.06,2e-07]
[1759099813376,11.72440282,210.05,210.01,38.1000002]
[1759099813582,11.72440282,210.05,210.04,1.52110299]
[1759099813795,11.72440282,210.05,210.04,15.83110299]
[1759099814191,11.72440282,210.05,210.04,19.60269916]
[1759099815003,11.72440282,210.05,210.04,5.29269916]
[1759099815391,11.72440282,210.05,210.04,19.35829317]
[1759099815910,11.72440282,210.05,210.04,45.35829317]
[1759099816202,11.72440282,210.05,210.04,19.35829317]
[1759099816986,11.72440282,210.05,210.04,45.35829317]
[1759099817192,11.72440282,210.05,210.04,19.35829317]
[1759099817592,23.87646944,210.15,210.04,5.2927076]
[1759099818190,23.87646944,210.15,210.07,2e-07]
[1759099819598,23.87646944,210.15,210.04,3.77160461]
[1759099819802,23.87646944,210.15,210.07,2e-07]
[1759099820901,23.87646944,210.15,210.04,5.2927076]
[1759099823694,23.87646944,210.15,210.07,3.25e-06]
[1759099823893,23.87646944,210.15,210.04,5.2927076]
[1759099824110,23.87646944,210.15,210.04,43.3727076]
[1759099824714,23.87646944,210.15,210.04,5.2927076]
[1759099825410,24.54646944,210.15,210.04,1.52111143]
[1759099826315,24.54646944,210.15,210.04,8.44e-06]
[1759099827602,24.54646944,210.15,210.04,3.24e-06]
[1759099829515,24.54646944,210.15,210.04,79.30000324]
[1759099829824,23.50392305,210.11,210.04,3.24e-06]
[1759099830002,23.21604357,210.09,210.04,3.24e-06]
[1759099830204,23.90135241,210.07,210.04,3.24e-06]
[1759099830604,0.67,210.06,210.04,3.24e-06]
[1759099830815,38.08,210.05,210.04,3.24e-06]
[1759099831229,38.75,210.05,210.04,3.24e-06]
[1759099833718,52.88199238,210.05,210.04,3.24e-06]
[1759099838328,38.75,210.05,210.04,3.24e-06]
[1759099843528,52.34559401,210.05,210.04,3.24e-06]
[1759099845007,72.34559401,210.05,210.04,3.24e-06]
[1759099847029,0.67,210.05,210.04,3.24e-06]
[1759099847219,38.75,210.05,210.04,3.24e-06]
[1759099849125,52.34559401,210.05,210.04,3.24e-06]
[1759099854130,75.9941976,210.05,210.04,3.24e-06]
[1759099855134,61.72860359,210.05,210.04,3.24e-06]
[1759099860223,62.39860359,210.05,210.04,3.24e-06]
[1759099860625,75.9941976,210.05,210.04,3.24e-06]
[1759099866445,75.9741976,210.05,210.04,3.24e-06]
[1759099866747,24.17392305,210.11,210.01,6e-08]
[1759099866956,23.21604357,210.09,210.01,6e-08]
[1759099867122,38.06,210.08,210.01,6e-08]
[1759099867465,13.59559401,210.15,210.01,6e-08]
[1759099867669,23.68696442,210.13,210.01,6e-08]
[1759099867833,38.06,210.12,210.01,6e-08]
[1759099868158,23.50392305,210.11,210.01,6e-08]
[1759099868457,23.21604357,210.09,210.01,6e-08]
[1759099868637,23.90135241,210.07,210.01,6e-08]
[1759099870264,38.06,210.06,210.01,6e-08]
[1759099870629,0.67,210.05,210.01,6e-08]
[1759099870832,38.06,210.04,210.01,6e-08]
[1759099871032,38.73,210.04,210.01,6e-08]
[1759099871237,38.06,210.04,210.01,6e-08]
[1759099871458,38.73,210.04,210.01,6e-08]
[1759099871636,38.06,210.04,210.01,6e-08]
[1759099872148,38.74,210.04,210.01,6e-08]
[1759099872361,38.06,210.04,210.01,6e-08]
[1759099873350,38.74,210.04,210.01,6e-08]
[1759099873556,38.06,210.04,210.01,6e-08]
[1759099874647,38.74,210.04,210.01,6e-08]
[1759099875155,38.06,210.04,210.01,6e-08]
[1759099875357,13.59559401,210.13,210.01,6e-08]
[1759099875528,0.68,210.11,210.01,6e-08]
[1759099885167,0.68,210.11,210.02,26.0]
[1759099885348,0.68,210.11,210.06,26.0]
[1759099885555,38.02,210.13,210.06,26.0]
[1759099885868,38.69,210.14,210.06,26.0]
[1759099886168,0.67,210.13,210.06,26.0]
[1759099886543,0.67,210.12,210.05,26.0]
[1759099887351,50.79559401,210.18,210.05,26.0]
[1759099887352,0.67,210.11,210.05,26.0]
[1759099887549,38.02,210.15,210.05,26.0]
[1759099887766,0.67,210.14,210.05,26.0]
[1759099887960,0.67,210.13,210.05,26.0]
[1759099888650,0.67,210.12,210.05,26.0]
[1759099889146,0.67,210.11,210.05,26.0]
[1759099889572,0.67,210.13,210.05,26.0]
[1759099889871,0.67,210.12,210.05,26.0]
[1759099892072,0.67,210.14,210.05,26.0]
[1759099892259,38.02,210.15,210.06,13.59559401]
[1759099892960,38.69,210.15,210.06,13.59559401]
[1759099895182,0.67,210.14,210.06,13.59559401]
[1759099895353,0.67,210.14,210.09,26.0]
[1759099895872,0.67,210.13,210.09,26.0]
[1759099896077,38.69,210.15,210.09,26.0]
[1759099897678,38.69,210.15,210.09,105.3]
[1759099898395,0.67,210.22,210.13,26.0]
[1759099898674,0.1,210.27,210.18,26.0]
[1759099900151,0.1,210.27,210.19,16.65160092]
[1759099900563,0.67,210.26,210.19,16.65160092]
[1759099900862,0.67,210.25,210.19,16.65160092]
[1759099901052,0.67,210.24,210.19,16.65160092]
[1759099901256,0.67,210.23,210.19,16.65160092]
[1759099901458,0.1,210.27,210.19,16.65160092]
[1759099901459,0.67,210.22,210.21,26.0]
[1759099902584,0.67,210.22,210.21,30.75714761]
[1759099904360,0.67,210.24,210.21,16.65001664]
[1759099904560,0.67,210.23,210.21,16.65001664]
[1759099904788,0.67,210.22,210.21,16.65001664]
[1759099905687,0.1,210.27,210.21,16.65001664]
[1759099905875,0.67,210.26,210.21,16.65001664]
[1759099906189,0.67,210.25,210.21,16.65001664]
[1759099906373,0.67,210.24,210.21,11.89286903]
[1759099906573,0.67,210.23,210.21,11.89286903]
[1759099906887,2.37862188,210.25,210.19,4.75760026]
[1759099906888,0.67,210.22,210.19,4.75760026]
[1759099907086,0.67,210.21,210.19,4.75760026]
[1759099907281,0.67,210.2,210.19,16.65160092]
[1759099908457,0.67,210.2,210.19,11.89400066]
[1759099909898,0.67,210.23,210.19,37.89400066]
[1759099910486,38.63,210.25,210.19,38.56400066]
[1759099910687,38.63,210.25,210.19,67.10960225]
[1759099910885,38.63,210.25,210.22,26.0]
[1759099911085,0.66,210.24,210.22,26.0]
[1759099911396,37.96,210.25,210.22,26.0]
[1759099911589,0.66,210.24,210.22,26.0]
[1759099911978,37.96,210.25,210.22,26.0]
[1759099912184,0.66,210.23,210.22,26.0]
[1759099912595,37.96,210.25,210.22,26.0]
[1759099912796,0.66,210.24,210.23,4.75669504]
[1759099913103,37.96,210.25,210.23,4.75669504]
[1759099913296,0.66,210.24,210.23,4.75669504]
[1759099917203,3.03862188,210.24,210.23,4.75669504]
[1759099917384,3.03862188,210.24,210.19,26.0]
[1759099917586,0.66,210.23,210.2,16.65080874]
[1759099917901,0.66,210.22,210.2,16.65080874]